[Event "48th Rilton Cup 2018"]
[Site "Stockholm"]
[Date "2019.01.05"]
[Round "9"]
[White "Lyrberg, Patrik"]
[Black "Pranav Anand"]
[Result "1-0"]
[ECO "C54"]
[WhiteElo "2440"]
[BlackElo "2274"]
[Annotator "NA"]
[PlyCount "145"]
[EventDate "2018.12.27"]
[EventType "swiss"]
[EventCountry "SWE"]
[SourceTitle "playchess.com"]
[Source "ChessBase"]
[SourceQuality "1"]
[TimeControl "40/5400+30:1800+30"]

1. e4 {[%emt 0:00:00]} e5 {[%emt 0:00:00]} 2. Nf3 {[%emt 0:00:00]} Nc6 {[%emt 0:00:00]} 3. Bc4 {[%emt 0:00:00]} Bc5 {[%emt 0:00:00]} 4. c3 {[%emt 0:00:14]} Nf6 {[%emt 0:00:00]} 5. d3 {[%emt 0:00:07]} d6 {[%emt 0:00:09]} 6. O-O {[%emt 0:00:21]} h6 {[%emt 0:00:29]} 7. a4 {[%emt 0:00:31]} a5 {[%emt 0:00:29]} 8. Na3 {[%emt 0:00:50]} O-O {[%emt 0:04:25]} 9. Nc2 {[%emt 0:14:03]} Ba7 {[%emt 0:02:06]} 10. Be3 {[%emt 0:03:21]} Be6 {[%emt 0:05:10]} 11. Bxe6 {[%emt 0:07:50]} fxe6 {[%emt 0:00:14]} 12. Bxa7 {[%emt 0:00:07]} Nxa7 {[%emt 0:01:33]} 13. d4 {[%emt 0:01:55]} Nxe4 {[%emt 0:05:26]} 14. Qe2 {[%emt 0:08:20]} Ng5 {[%emt 0:04:02]} 15. Nxg5 {[%emt 0:00:23]} Qxg5 {[%emt 0:00:11]} 16. dxe5 {[%emt 0:00:11]} d5 {[%emt 0:03:27]} 17. Nd4 {[%emt 0:00:35]} Rae8 {[%emt 0:02:58]} 18. Rae1 {[%emt 0:02:11]} c5 {[%emt 0:07:45]} 19. Nb5 {[%emt 0:01:15]} Nc8 {[%emt 0:00:46]} 20. g3 {[%emt 0:04:11]} Rd8 {[%emt 0:06:20]} 21. f4 {[%emt 0:04:44]} Qg6 {[%emt 0:00:26]} 22. Rf2 {[%emt 0:06:44]} b6 {[%emt 0:02:00]} 23. Kh1 {[%emt 0:00:35]} Rd7 {[%emt 0:06:35]} 24. Ref1 {[%emt 0:06:28]} h5 {[%emt 0:02:14]} 25. f5 {[%emt 0:11:54]} Rxf5 {[%emt 0:06:46]} 26. Rxf5 {[%emt 0:00:06]} exf5 {[%emt 0:00:03]} 27. e6 {[%emt 0:00:14]} Re7 {[%emt 0:00:38]} 28. Re1 {[%emt 0:01:17]} h4 {[%emt 0:12:35]} 29. Qe5 {[%emt 0:02:43]} hxg3 {[%emt 0:02:25]} 30. hxg3 {[%emt 0:01:28]} Qg4 {[%emt 0:04:12]} 31. Kg2 {[%emt 0:05:20]} f4 {[%emt 0:06:20]} 32. Qxf4 {[%emt 0:00:17]} Qxf4 {[%emt 0:00:06]} 33. gxf4 {[%emt 0:00:05]} g6 {[%emt 0:00:27]} 34. Re5 {[%emt 0:03:17]} Kg7 {[%emt 0:00:17]} 35. Kf3 {[%emt 0:00:09]} Kf6 {[%emt 0:00:34]} 36. Rxd5 {[%emt 0:01:09]} Rxe6 {[%emt 0:00:26]} 37. Rd8 {[%emt 0:01:08]} Ne7 {[%emt 0:01:49]} 38. Nd6 {[%emt 0:01:42]} Nf5 {[%emt 0:10:25]} 39. Nc4 {[%emt 0:03:18]} Ne7 {[%emt 0:00:56]} 40. Rf8+ {[%emt 0:01:26]} Kg7 {[%emt 0:00:07]} 41. Rb8 {[%emt 0:30:54]} Nd5 {[%emt 0:30:18]} 42. Rb7+ {[%emt 0:06:06]} Kf6 {[%emt 0:00:00]} 43. Rd7 {[%emt 0:00:00]} Ne7 {[%emt 0:00:00]} 44. Nd6 {[%emt 0:00:00]} Re1 {[%emt 0:00:00]} 45. Ne4+ {[%emt 0:00:00]} Kf7 {[%emt 0:00:00]} 46. Rb7 {[%emt 0:00:00]} Rf1+ {[%emt 0:00:00]} 47. Nf2 {[%emt 0:00:00]} Ra1 {[%emt 0:00:00]} 48. Rxb6 {[%emt 0:00:00]} Rxa4 {[%emt 0:00:00]} 49. Nd3 {[%emt 0:00:00]} Ra2 {[%emt 0:00:23]} 50. Ne5+ {[%emt 0:00:00]} Kf8 {[%emt 0:00:39]} 51. Rb8+ {[%emt 0:00:00]} Kg7 {[%emt 0:00:05]} 52. Rb7 {[%emt 0:00:00]} Kf6 {[%emt 0:00:24]} 53. Rb6+ {[%emt 0:00:00]} Kg7 {[%emt 0:00:19]} 54. Re6 {[%emt 0:00:00]} Kf8 {[%emt 0:00:13]} 55. Rf6+ {[%emt 0:00:00]} Kg8 {[%emt 0:01:14]} 56. Rb6 {[%emt 0:00:00]} a4 {[%emt 0:01:08]} 57. Rb7 {[%emt 0:02:12]} Kf8 {[%emt 0:01:20]} 58. Kg4 {[%emt 0:03:53]} a3 {[%emt 0:01:00]} 59. bxa3 {[%emt 0:00:04]} Rxa3 {[%emt 0:01:23]} 60. c4 {[%emt 0:00:06]} Ra6 {[%emt 0:03:36]} 61. Kg5 {[%emt 0:00:57]} Rd6 {[%emt 0:01:29]} 62. Rc7 {[%emt 0:01:51]} Rd2 {[%emt 0:02:06]} 63. Nxg6+ {[%emt 0:01:26]} Nxg6 {[%emt 0:00:06]} 64. Kxg6 {[%emt 0:00:04]} Rd4 {[%emt 0:00:22]} 65. f5 {[%emt 0:00:05]} Rxc4 {[%emt 0:00:19]} 66. Rc8+ {[%emt 0:00:05]} Ke7 {[%emt 0:00:03]} 67. f6+ {[%emt 0:00:03]} Ke6 {[%emt 0:00:11]} 68. f7 {[%emt 0:00:09]} Rf4 {[%emt 0:01:59]} 69. f8=Q {[%emt 0:00:07]} Rxf8 {[%emt 0:00:04]} 70. Rxf8 {[%emt 0:00:06]} c4 {[%emt 0:00:03]} 71. Rf5 {[%emt 0:00:59]} Kd6 {[%emt 0:00:21]} 72. Kf6 {[%emt 0:00:14]} c3 {[%emt 0:00:07]} 73. Rf3 {[%emt 0:00:08]} 1-0

[Event "48th Rilton Cup 2018"]
[Site "Stockholm"]
[Date "2019.01.05"]
[Round "9"]
[White "Rakesh Kumar Jena"]
[Black "Salomon, Johan"]
[Result "1-0"]
[ECO "A45"]
[WhiteElo "2398"]
[BlackElo "2494"]
[Annotator "ChessBase"]
[PlyCount "75"]
[EventDate "2018.12.27"]
[EventType "swiss"]
[EventCountry "SWE"]
[SourceTitle "playchess.com"]
[Source "ChessBase"]
[SourceQuality "1"]
[TimeControl "40/5400+30:1800+30"]

1. d4 {[%emt 0:00:00]} Nf6 {[%emt 0:00:00]} 2. Bf4 {[%emt 0:00:00]} b6 {[%emt 0:00:22]} 3. Nf3 {[%emt 0:00:00]} Bb7 {[%emt 0:00:04]} 4. e3 {[%emt 0:00:00]} Nh5 {[%emt 0:00:25]} 5. Bg3 {[%emt 0:00:22]} Nxg3 {[%emt 0:00:48]} 6. hxg3 {[%emt 0:00:06]} g6 {[%emt 0:01:40]} 7. Bd3 {[%emt 0:00:09]} Bg7 {[%emt 0:00:32]} 8. Nbd2 {[%emt 0:00:22]} d6 {[%emt 0:02:45]} 9. c3 {[%emt 0:00:23]} Nd7 {[%emt 0:01:30]} 10. Qb3 {[%emt 0:01:03]} e6 {[%emt 0:00:54]} 11. O-O-O {[%emt 0:00:56]} a6 {[%emt 0:02:26]} 12. Rh4 {[%emt 0:06:15]} b5 {[%emt 0:02:00]} 13. Rdh1 {[%emt 0:01:12]} h6 {[%emt 0:03:29]} 14. Bxg6 {[%emt 0:05:12]} fxg6 {[%emt 0:00:27]} 15. Qxe6+ {[%emt 0:00:06]} Qe7 {[%emt 0:00:19]} 16. Qxg6+ {[%emt 0:00:12]} Kd8 {[%emt 0:10:47]} 17. Rg4 {[%emt 0:04:00]} Bf8 {[%emt 0:02:07]} 18. e4 {[%emt 0:03:26]} Qf6 {[%emt 0:04:02]} 19. Qh5 {[%emt 0:04:13]} Qe7 {[%emt 0:07:44]} 20. Rf4 {[%emt 0:08:57]} Rg8 {[%emt 0:00:22]} 21. Nh4 {[%emt 0:02:58]} Qe8 {[%emt 0:05:48]} 22. Qxe8+ {[%emt 0:04:35]} Kxe8 {[%emt 0:00:01]} 23. Nf5 {[%emt 0:00:07]} Rg6 {[%emt 0:02:06]} 24. Rfh4 {[%emt 0:00:22]} c5 {[%emt 0:02:32]} 25. Nxh6 {[%emt 0:01:33]} cxd4 {[%emt 0:02:54]} 26. cxd4 {[%emt 0:00:09]} Be7 {[%emt 0:06:54]} 27. R4h3 {[%emt 0:03:22]} Nf6 {[%emt 0:04:53]} 28. f3 {[%emt 0:01:23]} Bc8 {[%emt 0:05:02]} 29. g4 {[%emt 0:00:05]} Bd8 {[%emt 0:00:07]} 30. Kc2 {[%emt 0:13:12]} a5 {[%emt 0:00:53]} 31. Kd3 {[%emt 0:04:27]} b4 {[%emt 0:01:13]} 32. Nf5 {[%emt 0:08:58]} Bxf5 {[%emt 0:04:33]} 33. Rh8+ {[%emt 0:01:18]} Kd7 {[%emt 0:00:53]} 34. exf5 {[%emt 0:02:34]} Rg7 {[%emt 0:00:09]} 35. R1h6 {[%emt 0:00:36]} Ke7 {[%emt 0:02:02]} 36. Ne4 {[%emt 0:01:01]} Nxe4 {[%emt 0:00:42]} 37. Kxe4 {[%emt 0:00:11]} Kf7 {[%emt 0:00:54]} 38. Rxd6 {[%emt 0:05:56]} 1-0